bitfinex/quotes_ETHUSD_20260308
["timestamp","ask_amount","ask_price","bid_price","bid_amount"]
[1772948179799,0.49909044,1950.3,1950.0,0.48480088]
[1772948180020,0.49909044,1950.3,1950.2,1.288]
[1772948182317,0.49909044,1950.3,1950.2,1.289]
[1772948185140,0.49909044,1950.3,1950.2,0.69784809]
[1772948185502,0.002,1950.3,1950.2,1.97976789]
[1772948185706,0.002,1950.3,1950.2,2.46456877]
[1772948189311,0.49909044,1950.6,1950.2,2.46456877]
[1772948189312,0.002,1950.6,1950.3,0.48480088]
[1772948189623,0.49909044,1950.9,1950.3,0.48480088]
[1772948190007,0.002,1950.9,1950.3,0.48480088]
[1772948190520,0.49909044,1950.9,1950.3,0.48480088]
[1772948191918,0.49909044,1950.9,1950.5,0.48480088]
[1772948192117,0.49909044,1950.9,1950.6,1.77580088]
[1772948192334,0.49909044,1950.9,1950.6,0.48480088]
[1772948192540,0.49909044,1950.9,1950.7,1.291]
[1772948195538,0.002,1950.8,1950.7,1.291]
[1772948196642,0.002,1950.8,1950.3,5.1281534]
[1772948196643,0.46653367,1950.8,1950.3,1.28284786]
[1772948196847,0.46653367,1950.8,1950.4,1.292]
[1772948197765,0.46653367,1950.8,1950.2,0.46857446]
[1772948197766,0.46453367,1950.6,1950.2,0.001]
[1772948198692,0.46453367,1950.6,1950.0,1.294]
[1772948198693,0.46453367,1950.3,1950.0,1.294]
[1772948198966,0.46453367,1950.3,1950.0,2.386]
[1772948201433,1.74639397,1950.3,1950.0,2.386]
[1772948202250,0.46453367,1950.2,1950.0,2.386]
[1772948207059,0.46453367,1950.5,1950.1,0.46757446]
[1772948207258,0.46453367,1950.5,1950.1,0.46857446]
[1772948211071,1.7462992,1950.5,1950.1,0.46857446]
[1772948212382,1.7462992,1950.5,1950.1,1.56057446]
[1772948213668,1.28176553,1950.5,1950.1,1.56057446]
[1772948213852,0.46453367,1950.4,1950.1,1.56057446]
[1772948214050,0.46453367,1950.4,1950.1,1.093]
[1772948214250,0.46453367,1950.4,1950.1,1.294]
[1772948216647,1.28185407,1950.3,1950.1,1.294]
[1772948216847,1.74638774,1950.3,1950.1,1.294]
[1772948217152,0.46453367,1950.3,1950.1,1.294]
[1772948218879,0.46453367,1950.3,1950.2,0.001]
[1772948219280,1.74638774,1950.3,1950.2,0.001]
[1772948220178,0.46453367,1950.3,1950.2,0.001]
[1772948221080,1.74638774,1950.3,1950.2,0.001]
[1772948222776,1.73645573,1950.4,1950.2,0.001]
[1772948223974,0.45462189,1950.4,1950.2,0.001]
[1772948224177,0.002,1950.4,1950.2,0.46400559]
[1772948231497,0.002,1950.4,1950.3,0.001]
[1772948232055,0.002,1950.6,1950.3,0.46400559]
[1772948232394,0.45462189,1950.7,1950.4,0.46300559]
[1772948233268,1.73621715,1950.7,1950.4,0.46300559]
[1772948236564,0.45262189,1950.6,1950.3,0.001]
[1772948237567,0.45262189,1950.6,1950.2,1.74592479]
[1772948237568,1.0226681,1950.4,1950.0,0.001]
[1772948237772,0.45262189,1950.3,1949.9,0.001]
[1772948238698,0.45262189,1950.1,1949.9,0.001]
[1772948239696,0.45262189,1950.0,1949.9,0.001]
[1772948240300,0.45262189,1949.9,1949.6,0.001]
[1772948240498,0.45262189,1949.7,1949.2,1.294]
[1772948240803,0.45262189,1949.7,1949.2,1.75700559]
[1772948241876,0.45262189,1949.5,1949.2,1.294]
[1772948243711,0.45262189,1949.4,1949.3,0.001]
[1772948246681,0.45262189,1949.7,1949.3,0.001]
[1772948248714,1.73493621,1949.6,1949.3,0.001]
[1772948249108,0.45262189,1949.5,1949.3,0.001]
[1772948251496,0.45262189,1949.7,1949.3,0.46400559]
[1772948251898,0.45262189,1949.6,1949.2,0.46400559]
[1772948252106,0.45262189,1949.6,1949.3,0.46300559]
[1772948255422,1.73495234,1949.6,1949.3,0.46300559]
[1772948255618,0.45262189,1949.6,1949.4,0.001]
[1772948255822,0.47153036,1949.8,1949.4,0.49433921]
[1772948257924,1.75361377,1950.0,1949.5,0.49333921]
[1772948258240,0.47153036,1950.0,1949.5,0.49333921]
[1772948258399,1.75358286,1950.0,1949.5,0.49333921]
[1772948258722,0.47153036,1949.9,1949.5,0.49333921]
[1772948260328,1.75364849,1949.9,1949.5,1.77571143]
[1772948260531,0.47153036,1949.9,1949.6,0.49333921]
[1772948262612,0.47153036,1949.9,1949.6,1.77564277]
[1772948264401,0.47153036,1950.0,1949.6,1.77564277]
[1772948265129,0.47153036,1950.1,1949.7,0.49333921]
[1772948265932,0.47153036,1950.3,1949.7,0.49333921]
[1772948266107,0.47153036,1950.2,1949.7,0.49333921]
[1772948266706,0.47153036,1950.3,1949.7,0.49333921]
[1772948266929,0.47153036,1950.2,1949.8,0.49333921]
[1772948267601,0.002,1949.9,1949.8,0.49333921]
[1772948269916,0.002,1949.9,1949.8,1.77552199]
[1772948273959,0.002,1949.9,1949.8,3.06952199]
[1772948276570,0.002,1950.1,1949.9,0.49333921]
[1772948276853,0.47353036,1950.1,1949.8,3.06952199]
[1772948282138,0.47353036,1950.1,1949.8,1.78733921]
[1772948282467,0.47353036,1950.1,1949.8,1.294]
[1772948284364,1.28399951,1950.1,1949.8,1.294]
[1772948284571,0.45291252,1950.0,1949.8,1.294]
[1772948285965,0.45291252,1950.0,1949.8,2.57617671]
[1772948290105,0.002,1950.1,1949.9,0.46784891]
[1772948291190,0.002,1950.1,1949.9,0.46884891]
[1772948291682,0.002,1950.0,1949.9,0.46884891]
[1772948292061,0.002,1950.0,1949.9,1.75096594]
[1772948297991,0.002,1950.0,1949.9,0.46884891]
[1772948298381,0.002,1950.0,1949.9,1.75096594]
[1772948300272,0.002,1950.0,1949.9,0.46884891]
[1772948300793,0.002,1950.2,1950.0,0.46784891]
[1772948302594,0.002,1950.2,1950.0,1.74989051]
[1772948305396,0.002,1950.2,1950.0,1.75089051]
[1772948305566,0.002,1950.1,1950.0,1.75089051]
[1772948308095,0.002,1950.3,1950.0,1.2830416]
[1772948308300,0.002,1950.7,1950.1,0.46784891]
[1772948308467,0.45445138,1951.0,1950.3,0.46784891]
[1772948309309,0.00153886,1951.0,1950.3,0.46784891]
[1772948309473,0.00153886,1951.0,1950.5,0.46784891]
[1772948309794,0.00153886,1951.0,1950.7,0.46784891]
[1772948311569,0.45445138,1951.0,1950.6,2.58759647]
[1772948311785,0.45445138,1951.0,1950.6,1.306]
[1772948312184,0.45445138,1951.0,1950.6,2.58765248]
[1772948313271,0.45445138,1951.0,1950.4,1.28175383]
[1772948313599,1.28145983,1950.9,1950.4,1.307]
[1772948313810,0.46118451,1950.8,1950.0,1.74627398]
[1772948313996,0.46118451,1950.8,1950.3,1.307]
[1772948314785,0.46118451,1950.8,1950.3,1.77027363]
[1772948316604,0.46118451,1950.6,1950.3,1.307]
[1772948317710,0.46318451,1950.5,1950.3,1.307]
[1772948329617,0.46318451,1950.5,1950.4,0.001]
[1772948331379,1.74490714,1950.5,1950.4,0.001]
[1772948331584,0.46318451,1950.5,1950.4,0.001]
[1772948340834,0.002,1950.5,1950.4,0.46427363]
[1772948341840,0.002,1950.8,1950.5,0.4842829]
[1772948343028,0.002,1950.7,1950.6,1.74604205]
[1772948345148,0.002,1950.9,1950.7,0.46438513]
[1772948349023,0.002,1950.9,1950.7,1.74597349]
[1772948353255,0.002,1950.9,1950.8,0.46438513]
[1772948355129,1.76988724,1951.2,1950.9,0.46438513]
[1772948355438,0.002,1951.1,1950.9,0.46438513]
[1772948359469,0.49057261,1951.1,1950.8,0.46438513]
[1772948361674,1.77194168,1951.1,1950.8,0.46438513]
[1772948366872,1.77194168,1951.1,1950.9,0.001]
[1772948367168,0.002,1951.0,1950.9,0.001]
[1772948371576,0.002,1951.0,1950.9,0.46538513]
[1772948388294,0.002,1951.0,1950.9,0.001]
[1772948388466,0.45396095,1950.9,1950.8,0.001]
[1772948389291,0.45596095,1951.0,1950.8,0.001]
[1772948390392,0.002,1951.0,1950.8,0.48734983]
[1772948391996,0.002,1951.0,1950.9,0.48634983]
[1772948392365,0.002,1951.0,1950.9,0.48734983]
[1772948394811,0.002,1951.0,1950.9,1.76880966]
[1772948397095,0.002,1951.0,1950.9,0.48734983]
[1772948397396,0.002,1951.0,1950.9,0.001]
[1772948397698,0.002,1951.0,1950.9,1.28245983]
[1772948400074,0.002,1951.0,1950.9,0.001]
[1772948403295,0.002,1951.0,1950.9,0.47233693]
[1772948407012,5.28423305,1951.6,1950.9,0.47233693]
[1772948407013,0.45795276,1951.5,1950.9,0.47233693]
[1772948407201,0.45795276,1951.5,1951.0,1.79133693]
[1772948410419,1.73908425,1951.4,1951.0,1.79133693]
[1772948413189,0.45795276,1951.3,1951.0,1.79133693]
[1772948415324,0.45795276,1951.3,1951.0,3.07272611]
[1772948415500,1.28114391,1951.4,1951.1,0.47133693]
[1772948415823,1.73909667,1951.4,1951.1,0.47133693]
[1772948417416,0.002,1951.2,1951.1,0.47133693]
[1772948419018,1.74102527,1951.5,1951.2,0.47133693]
[1772948419212,1.73902527,1951.5,1951.2,0.47133693]
[1772948419416,0.45795276,1951.4,1951.0,3.07367821]
[1772948419607,0.45795276,1951.4,1951.1,0.47133693]
[1772948419802,1.73902527,1951.5,1951.1,0.47133693]
[1772948420430,0.45795276,1951.4,1951.1,0.47133693]
[1772948422429,0.45795276,1951.3,1951.0,1.321]
[1772948426335,0.45795276,1951.3,1951.0,1.79233693]
[1772948427530,0.45795276,1951.3,1951.0,3.07371309]
[1772948427725,1.7390679,1951.5,1951.1,0.47133693]
[1772948428708,5.12410778,1951.6,1951.1,0.47133693]
[1772948428709,0.45795276,1951.6,1951.1,0.47133693]
[1772948429740,1.28104733,1951.6,1951.1,1.75262811]
[1772948429906,0.45795276,1951.5,1951.1,1.75262811]
[1772948430438,0.45995276,1951.5,1951.2,0.001]
[1772948431844,0.45795276,1951.3,1951.2,0.001]
[1772948432004,0.45795276,1951.3,1951.1,1.323]
[1772948435339,0.49227507,1951.2,1951.0,0.001]
[1772948436448,0.49227507,1951.4,1951.0,0.47808444]
[1772948437039,0.49227507,1951.4,1951.0,0.001]
[1772948442454,0.49227507,1951.2,1951.0,0.001]
[1772948443460,0.49227507,1951.2,1951.1,0.001]
[1772948445265,1.28319715,1951.3,1951.1,0.001]
[1772948445628,0.002,1951.3,1951.1,0.001]
[1772948445942,0.002,1951.3,1951.1,0.47808444]
[1772948452674,0.002,1951.5,1951.2,0.47708444]
[1772948453840,0.002,1951.5,1951.4,0.47708444]
[1772948456842,0.002,1951.5,1951.3,2.61119638]
[1772948457037,0.002,1951.5,1951.3,1.33]
[1772948457462,0.002,1951.5,1951.3,2.61119202]
[1772948457969,0.49427507,1951.5,1951.3,1.331]
[1772948460441,0.49227507,1951.4,1951.0,0.001]
[1772948468178,0.46851975,1951.2,1950.8,0.001]
[1772948468686,0.46851975,1951.1,1950.8,0.001]
[1772948468871,0.46851975,1950.9,1950.5,0.001]
[1772948469078,0.46851975,1950.9,1950.3,0.47255398]
[1772948469275,1.28319715,1951.3,1950.3,0.001]
[1772948469276,0.46851975,1950.7,1950.3,0.001]
[1772948470179,0.46851975,1950.5,1950.3,0.001]
[1772948473089,0.46851975,1950.4,1950.3,0.001]
[1772948473479,0.46851975,1950.4,1950.1,0.001]
[1772948473677,0.46851975,1950.4,1949.9,0.001]
[1772948473678,0.46851975,1950.3,1949.9,0.001]
[1772948475469,0.46851975,1950.1,1949.9,0.001]
[1772948475668,0.46851975,1950.1,1949.7,0.001]
[1772948477869,0.46851975,1950.5,1949.7,0.47255398]
[1772948479499,1.75011097,1950.7,1949.7,0.47255398]
[1772948479669,1.75011097,1950.7,1949.9,0.47155398]
[1772948480271,1.75011097,1950.7,1950.0,0.47155398]
[1772948480466,0.46851975,1950.6,1950.0,0.47155398]
[1772948482773,0.46851975,1950.6,1950.1,1.28198553]
[1772948483068,0.46851975,1950.6,1950.2,0.47155398]
[1772948484476,1.75017804,1950.6,1950.2,0.47155398]
[1772948484798,1.75017804,1950.6,1950.2,1.75347093]
[1772948485092,1.75017804,1950.6,1950.3,0.47155398]
[1772948485325,1.28161752,1950.7,1950.3,0.47155398]
[1772948485666,1.75013727,1950.7,1950.3,0.47155398]
[1772948485864,0.46851975,1950.6,1950.3,0.47155398]
[1772948488299,0.46851975,1950.8,1950.4,0.47155398]
[1772948491207,1.75011097,1950.7,1950.4,0.47155398]
[1772948492286,1.75111097,1950.7,1950.4,0.47155398]
[1772948498120,0.49671608,1950.6,1950.3,1.28185238]
[1772948498322,0.49671608,1950.6,1950.3,1.76986581]
[1772948499598,1.28259122,1950.7,1950.4,0.48801343]
[1772948500197,0.49671608,1950.6,1950.3,1.28185238]
[1772948500518,1.7793073,1950.7,1950.4,0.48801343]
[1772948503317,0.49671608,1950.6,1950.2,1.76993323]
[1772948503616,0.49671608,1950.6,1950.1,4.8599557]
[1772948504118,0.49871608,1950.6,1950.2,0.48801343]
[1772948504908,0.002,1950.6,1950.2,0.48801343]
[1772948505124,0.001,1950.7,1950.2,0.48801343]
[1772948505335,0.001,1950.7,1950.4,0.48801343]
[1772948507993,0.001,1950.7,1950.4,1.28174838]
[1772948508198,0.001,1950.7,1950.5,0.48801343]
[1772948513541,0.001,1950.7,1950.6,0.48801343]
[1772948518746,0.001,1950.7,1950.6,1.76967035]
[1772948518948,0.001,1950.7,1950.6,0.48801343]
[1772948519245,0.001,1950.7,1950.6,1.76967035]
[1772948519557,0.00153886,1951.0,1950.7,0.48801343]
[1772948519855,0.00153886,1951.0,1950.8,0.48801343]
[1772948520579,0.49825494,1951.0,1950.6,0.48801343]
[1772948520858,0.49825494,1951.0,1950.5,4.423]
[1772948522153,0.45591164,1950.8,1950.5,3.091]
[1772948524050,0.4516558,1950.6,1950.5,0.001]
[1772948524952,0.4516558,1950.6,1950.4,0.001]
[1772948525522,1.73322789,1950.8,1950.4,0.4927193]
[1772948525719,0.00153886,1951.0,1950.4,0.4927193]
[1772948526224,0.00153886,1951.0,1950.6,0.4917193]
[1772948526531,0.002,1951.4,1950.8,0.4917193]
[1772948526741,1.28313477,1951.4,1950.8,0.4917193]
[1772948528771,1.28313477,1951.4,1951.0,0.4917193]
[1772948528942,0.002,1951.2,1951.0,0.4917193]
[1772948532046,0.002,1951.2,1951.0,1.77310167]
[1772948532245,0.002,1951.2,1951.0,0.4917193]
[1772948533532,0.002,1951.2,1951.0,1.77309547]
[1772948533740,0.002,1951.2,1951.1,0.4917193]
[1772948536465,0.002,1951.2,1951.1,1.77304778]
[1772948536665,0.002,1951.2,1951.1,0.4917193]
[1772948536967,0.002,1951.2,1951.1,1.77304778]
[1772948537138,0.002,1951.2,1951.1,0.4917193]
[1772948539564,0.002,1951.2,1950.9,0.4917193]
[1772948539739,0.4536558,1951.2,1950.9,0.4917193]
[1772948540255,0.002,1951.2,1950.9,0.4917193]
[1772948540760,0.4536558,1951.2,1950.8,5.7095247]
[1772948541263,0.4516558,1951.0,1950.8,5.7095247]
[1772948541770,0.4516558,1951.0,1950.8,4.428]
[1772948542070,0.4516558,1951.0,1950.8,1.338]
[1772948542256,0.002,1951.1,1950.8,1.8297193]
[1772948543868,0.002,1951.1,1950.8,3.11124181]
[1772948544049,0.002,1951.1,1950.8,1.8297193]
[1772948544758,0.002,1951.1,1950.8,1.338]
[1772948544949,0.002,1951.1,1950.9,0.4917193]
[1772948546449,0.002,1951.1,1950.8,1.338]
[1772948546749,0.4536558,1951.1,1950.8,1.8297193]
[1772948546950,0.4536558,1951.1,1950.8,3.11122693]
[1772948548064,0.002,1951.1,1950.8,2.61950763]
[1772948548268,0.002,1951.1,1950.9,0.4917193]
[1772948551053,0.002,1951.1,1950.9,1.77316725]
[1772948552575,0.002,1951.1,1951.0,0.001]
[1772948554459,0.48739887,1951.1,1950.9,0.001]
[1772948564266,1.76874173,1951.1,1950.9,0.001]
[1772948565002,1.76874173,1951.1,1951.0,0.001]
[1772948565205,1.76874173,1951.1,1950.9,0.001]
[1772948565206,0.48539887,1951.0,1950.9,0.001]
[1772948565650,0.48539887,1951.0,1950.6,0.001]
[1772948565849,0.48539887,1950.8,1950.6,0.001]
[1772948566659,0.48539887,1950.8,1950.5,0.001]
[1772948567760,0.48539887,1950.6,1950.5,0.001]
[1772948570681,0.48539887,1950.5,1950.3,1.344]
[1772948573685,0.48539887,1950.5,1950.3,0.001]
[1772948573889,1.28165692,1950.6,1950.3,0.49963248]
[1772948574193,1.76705579,1950.6,1950.3,0.49963248]
[1772948576627,1.76705579,1950.6,1950.4,0.001]
[1772948576924,0.002,1950.5,1950.4,0.001]
[1772948578612,0.48739887,1950.5,1950.4,0.001]
[1772948578928,0.48739887,1950.5,1950.1,0.001]
[1772948579833,0.48539887,1950.3,1950.1,0.001]
[1772948582638,1.7672709,1950.3,1950.1,0.001]
[1772948582843,0.48303884,1950.2,1950.1,0.001]
[1772948583924,0.48303884,1950.2,1950.0,0.00153886]
[1772948584823,1.76491087,1950.3,1950.0,0.47458359]
[1772948585948,0.48303884,1950.2,1950.0,0.00153886]
[1772948589146,0.48303884,1950.2,1950.1,0.001]
[1772948589950,0.48503884,1950.2,1950.1,0.001]
[1772948592844,0.002,1950.2,1950.1,0.001]
[1772948593166,0.002,1950.2,1950.1,0.47404473]
[1772948598679,0.002,1950.2,1950.1,0.001]
[1772948605489,0.002,1950.4,1950.2,0.47304473]
[1772948605689,0.002,1950.4,1950.3,0.47304473]
[1772948606297,0.48503884,1950.4,1950.1,1.358]
[1772948606903,0.48503884,1950.4,1950.1,1.83104473]
[1772948608984,0.002,1950.4,1950.2,0.47304473]
[1772948610574,0.002,1950.4,1950.3,1.7548988]
[1772948611799,0.002,1950.8,1950.4,0.47304473]
[1772948613404,0.002,1950.8,1950.4,1.28172284]
[1772948613610,0.002,1950.8,1950.5,0.49005663]
[1772948616820,0.002,1950.8,1950.5,1.77177551]
[1772948617407,0.002,1950.8,1950.6,0.49005663]
[1772948621346,0.002,1950.8,1950.6,1.77165122]
[1772948621548,0.002,1950.8,1950.7,0.49005663]
[1772948621832,1.76496172,1951.1,1950.7,0.49005663]
[1772948623538,0.48163192,1951.0,1950.7,0.49005663]
[1772948625237,1.76304798,1951.0,1950.7,0.49005663]
[1772948625415,0.002,1950.9,1950.7,0.49005663]
[1772948633645,0.002,1950.9,1950.8,0.49005663]
[1772948636454,0.002,1950.9,1950.8,1.77158215]
[1772948636647,0.002,1950.9,1950.8,0.49005663]
[1772948637858,0.002,1950.9,1950.8,0.49105663]
[1772948639858,0.002,1950.9,1950.8,0.001]
[1772948647767,0.47890998,1950.9,1950.8,0.001]
[1772948649368,0.002,1950.9,1950.8,0.001]
[1772948649672,0.002,1950.9,1950.8,0.45639702]
[1772948664682,0.002,1950.9,1950.8,0.001]
[1772948666879,0.002,1950.9,1950.4,0.001]
[1772948666880,0.47690998,1950.8,1950.4,0.001]
[1772948671497,0.47690998,1950.6,1950.4,0.001]
[1772948675887,0.47690998,1950.6,1950.5,0.001]
[1772948676187,0.46128393,1950.8,1950.5,0.001]
[1772948676381,1.7428146,1950.8,1950.5,0.45238965]
[1772948677672,0.46128393,1950.8,1950.5,1.73510777]
[1772948677871,0.002,1950.8,1950.6,0.45138965]
[1772948679699,0.46128393,1950.8,1950.5,0.45238965]
[1772948679994,0.46128393,1950.8,1950.6,0.001]
[1772948683428,1.74281228,1950.8,1950.6,0.001]
[1772948683640,0.45928393,1950.7,1950.6,0.001]
[1772948687257,1.74087515,1950.7,1950.6,0.001]
[1772948687558,0.45928393,1950.7,1950.6,0.001]
[1772948687720,0.46128393,1950.7,1950.6,0.001]
[1772948689626,0.46128393,1950.7,1950.5,0.001]
[1772948689821,0.46128393,1950.7,1950.6,0.001]
[1772948692253,0.002,1950.7,1950.6,0.001]
[1772948694253,0.46128393,1950.7,1950.5,0.001]
[1772948694435,0.002,1950.7,1950.5,0.45238965]
[1772948697949,0.002,1950.7,1950.5,1.7341114]
[1772948698151,0.002,1950.7,1950.5,0.45238965]
[1772948698850,0.002,1950.7,1950.5,1.73411161]
[1772948699762,0.002,1950.7,1950.6,0.001]
[1772948706368,0.002,1950.7,1950.6,0.47130902]
[1772948708368,0.002,1950.7,1950.6,0.001]
[1772948718178,0.48625734,1950.7,1950.6,0.001]
[1772948729989,0.002,1950.7,1950.6,0.001]
[1772948733290,0.48630742,1950.7,1950.6,0.001]
[1772948736162,0.48430742,1950.6,1950.5,0.001]
[1772948736482,0.48430742,1950.6,1950.4,0.001]
[1772948736688,0.48630742,1950.6,1950.4,0.001]
[1772948737396,0.48630742,1950.6,1950.3,0.001]
[1772948737593,0.48430742,1950.4,1950.2,1.3941]
[1772948741573,0.48430742,1950.3,1950.2,1.3941]
[1772948742096,0.48430742,1950.3,1950.2,0.0011]
[1772948745696,1.76608329,1950.5,1950.2,0.0011]
[1772948746198,0.48430742,1950.4,1950.2,0.0011]
[1772948748268,0.48430742,1950.5,1950.2,0.45229441]
[1772948748473,0.48630742,1950.6,1950.2,0.45229441]
[1772948749201,1.76798318,1950.6,1950.2,0.45229441]
[1772948749384,0.48430742,1950.5,1950.2,0.0011]
[1772948750795,0.002,1950.6,1950.2,0.45229441]
[1772948751101,0.48630742,1950.6,1950.2,0.45229441]
[1772948752805,0.48430742,1950.5,1950.2,0.0011]
[1772948755504,0.48430742,1950.3,1950.2,0.0011]
[1772948760088,0.48630742,1950.3,1950.2,0.0011]
[1772948760824,0.002,1950.3,1950.2,0.45229441]
[1772948760981,0.48430742,1950.5,1950.2,0.45229441]
[1772948761187,0.48630742,1950.6,1950.2,0.45229441]
[1772948761426,0.5129479,1950.6,1950.2,0.45229441]
[1772948762524,0.5129479,1950.6,1950.3,0.46150833]
[1772948764420,0.02864048,1950.6,1950.3,0.46150833]
[1772948765020,0.02864048,1950.6,1950.5,0.46150833]
[1772948765492,0.02864048,1950.6,1950.4,1.74329668]
[1772948766716,0.002,1950.6,1950.5,0.46150833]
[1772948766934,0.002,1950.8,1950.5,1.74322425]
[1772948767220,0.02864048,1950.8,1950.6,0.46150833]
[1772948767726,0.002,1950.8,1950.6,0.46150833]
[1772948768314,1.75154216,1951.0,1950.7,0.46150833]
[1772948768315,0.002,1951.0,1950.7,0.46150833]
[1772948768627,0.002,1951.0,1950.8,0.46150833]
[1772948769395,0.002,1951.0,1950.9,0.46150833]
[1772948775525,0.002,1951.0,1950.9,1.74296816]
[1772948775934,0.002,1951.2,1951.0,0.46150833]
[1772948776097,0.02864048,1951.2,1951.0,0.46150833]
[1772948776305,0.002,1951.4,1951.0,0.46150833]
[1772948776904,0.47010237,1951.4,1951.0,0.46150833]
[1772948778534,0.47010237,1951.4,1951.0,1.74285044]
[1772948780810,0.46810237,1951.3,1951.0,1.86850833]
[1772948783148,0.46810237,1951.2,1950.8,0.46150833]
[1772948783313,0.46810237,1951.2,1950.7,0.46150833]
[1772948784137,0.46810237,1951.2,1951.1,0.001]
[1772948784511,1.74936518,1951.2,1951.1,0.001]
[1772948793185,0.46810237,1951.2,1951.1,0.001]
[1772948793361,1.78227278,1951.3,1951.1,0.001]
[1772948797057,1.78227278,1951.3,1951.2,0.001]
[1772948798047,0.002,1951.3,1951.2,0.001]
[1772948798652,0.50103135,1951.3,1951.2,0.001]
[1772948800561,1.7822285,1951.3,1951.2,0.001]
[1772948807436,1.28319715,1951.3,1951.2,0.001]
[1772948810145,0.002,1951.3,1951.2,0.001]
[1772948810350,0.002,1951.3,1951.2,0.45665063]
[1772948820982,0.49903135,1951.9,1951.3,0.45665063]
[1772948821291,0.49903135,1951.8,1951.3,0.001]
[1772948823651,1.28093456,1951.7,1951.3,0.001]
[1772948823977,0.48562719,1951.6,1951.3,0.001]
[1772948824993,1.02156017,1951.5,1951.1,0.001]
[1772948825196,0.48562719,1951.4,1951.1,0.001]
[1772948825994,0.48562719,1951.2,1951.1,0.001]
[1772948828076,0.48562719,1951.8,1951.2,0.49693074]
[1772948828267,0.53622718,1951.9,1951.2,0.49693074]
[1772948828474,1.81704578,1951.9,1951.2,0.49693074]
[1772948828694,1.33141859,1951.9,1951.2,0.49693074]
[1772948828897,1.81704578,1951.9,1951.2,0.49693074]
[1772948830466,1.81704512,1951.9,1951.4,0.49693074]
[1772948831609,0.48562719,1951.8,1951.2,0.49693074]
[1772948832474,0.48562719,1951.6,1951.2,0.49693074]
[1772948832993,0.48562719,1951.6,1951.3,0.001]
[1772948833305,0.48562719,1951.5,1951.2,0.001]
[1772948834787,0.48562719,1951.3,1951.2,0.001]
[1772948835783,1.76666319,1951.6,1951.2,0.49793074]
[1772948837107,1.76666319,1951.6,1951.2,1.7791826]
[1772948838506,0.48562719,1951.6,1951.3,0.49693074]
[1772948838697,1.76662863,1951.6,1951.3,0.49693074]
[1772948840889,0.48562719,1951.5,1951.2,0.001]
[1772948841213,0.48562719,1951.5,1951.2,0.49793074]
[1772948842591,1.76672179,1951.5,1951.2,0.49793074]
[1772948844412,0.48562719,1951.4,1951.2,0.001]
[1772948845416,0.48562719,1951.4,1951.3,0.001]
[1772948850798,0.48562719,1951.4,1951.1,0.49793074]
[1772948850799,1.76675868,1951.4,1951.1,0.49793074]
[1772948851011,1.76675868,1951.4,1951.1,0.001]
[1772948851012,0.48562719,1951.3,1951.1,0.001]
[1772948852307,1.76682646,1951.3,1951.1,0.001]
[1772948852621,0.48485914,1951.2,1951.1,0.001]
[1772948857621,0.48685914,1951.2,1951.1,0.001]
[1772948858637,0.002,1951.2,1951.1,0.001]
[1772948859750,0.002,1951.2,1951.1,0.45208994]
[1772948862637,0.002,1951.2,1951.1,0.001]
[1772948864218,0.002,1951.2,1951.1,0.45208994]
[1772948865143,0.002,1951.2,1951.1,0.001]
[1772948866829,0.48685914,1951.2,1951.1,0.001]
[1772948868746,0.002,1951.2,1951.1,0.001]
[1772948868919,0.002,1951.2,1951.1,0.45208994]
[1772948869121,1.28318479,1951.4,1951.2,0.45108994]
[1772948869522,1.28318479,1951.4,1951.2,0.45208994]
[1772948880257,0.48685914,1951.4,1951.2,0.001]
[1772948880455,0.002,1951.4,1951.2,0.001]
[1772948881660,0.002,1951.3,1951.2,0.001]
[1772948885258,0.002,1951.4,1951.2,0.001]
[1772948885564,0.002,1951.4,1951.3,0.45258709]
[1772948888550,0.002,1951.5,1951.4,0.45258709]
[1772948891380,0.002,1951.5,1951.3,0.45258709]
[1772948893671,0.002,1951.5,1951.3,0.45358709]
[1772948893867,0.002,1951.4,1951.3,0.45358709]
[1772948896678,0.002,1951.4,1951.3,1.73478424]
[1772948896881,0.002,1951.4,1951.3,0.45358709]
[1772948902668,0.002,1951.5,1951.4,0.45258709]
[1772948905192,0.002,1951.5,1951.3,0.45358709]
[1772948905396,0.002,1951.7,1951.4,0.45258709]
[1772948905689,0.002,1951.9,1951.4,0.45258709]
[1772948906062,0.002,1951.9,1951.4,0.45358709]
[1772948907474,0.002,1951.9,1951.5,1.28106584]
[1772948907695,0.002,1951.9,1951.6,0.45258709]
[1772948909368,0.45998655,1951.8,1951.4,0.001]
[1772948910075,0.45998655,1951.8,1951.4,0.45358709]
[1772948910890,1.28283373,1951.9,1951.4,0.45358709]
[1772948910891,0.002,1951.9,1951.4,0.45358709]
[1772948911472,0.002,1951.9,1951.6,0.45258709]
[1772948913680,0.002,1951.9,1951.6,1.73355885]
[1772948914192,0.002,1951.9,1951.6,0.45258709]
[1772948915986,0.002,1951.9,1951.6,1.7335738]
[1772948917301,0.002,1951.9,1951.7,0.49959837]
[1772948918096,0.002,1951.9,1951.8,0.49959837]
[1772948919367,0.002,1952.1,1951.7,1.28191852]
[1772948919591,0.002,1952.1,1951.9,0.49959837]
[1772948922002,0.002,1952.1,1952.0,0.49959837]
[1772948922775,0.45440421,1952.4,1952.0,1.78033607]
[1772948923075,1.7348856,1952.4,1952.1,0.49959837]
[1772948925285,0.45440421,1952.3,1951.7,0.50059837]
[1772948926539,0.45440421,1952.2,1951.7,0.001]
[1772948926835,0.45440421,1952.0,1951.7,0.001]
[1772948927306,0.45440421,1951.8,1951.7,0.001]
[1772948929408,1.73527315,1951.8,1951.7,0.001]
[1772948930178,0.45440421,1951.7,1951.3,0.001]
[1772948931279,0.45440421,1951.5,1951.3,0.001]
[1772948934524,1.73547596,1951.5,1951.3,0.001]
[1772948935322,0.45440421,1951.5,1951.3,0.001]
[1772948937227,0.45440421,1951.7,1951.3,0.50059837]
[1772948938518,1.2810002,1951.6,1951.3,0.50059837]
[1772948938726,1.73540441,1951.6,1951.3,0.50059837]